bitfinex/quotes_SOLUSD_20241126
["timestamp","ask_amount","ask_price","bid_price","bid_amount"]
[1732583401606,12.83312604,237.04,237.0,4.2192]
[1732583402711,12.83312604,237.04,236.97,4.2199]
[1732583402909,12.83312604,237.06,236.97,4.2199]
[1732583403110,23.776884,237.05,236.97,4.2199]
[1732583403709,12.83312604,237.06,236.98,12.83312604]
[1732583404031,12.83312604,237.1,237.0,12.83312604]
[1732583404328,12.83312604,237.08,236.98,12.83312604]
[1732583405429,12.83312604,237.08,237.0,12.83312604]
[1732583405823,12.83312604,237.1,237.0,12.83312604]
[1732583406033,12.83312604,237.12,237.02,12.83312604]
[1732583406340,12.83312604,237.16,237.08,12.83312604]
[1732583406630,12.83312604,237.2,237.1,12.83312604]
[1732583406812,12.83312604,237.2,237.12,12.83312604]
[1732583407013,12.83312604,237.22,237.12,12.83312604]
[1732583407437,12.83312604,237.22,237.13,4.217]
[1732583407639,12.83312604,237.2,237.13,4.217]
[1732583408321,12.83312604,237.2,237.13,17.05012604]
[1732583410237,12.83312604,237.2,237.13,4.217]
[1732583410434,23.776884,237.21,237.13,17.05012604]
[1732583410733,23.776884,237.23,237.15,12.83312604]
[1732583410935,23.776884,237.21,237.13,17.05012604]
[1732583412936,23.776884,237.23,237.15,12.83312604]
[1732583413229,12.83312604,237.26,237.19,12.83312604]
[1732583413427,12.83312604,237.26,237.14,22.69]
[1732583413428,12.83312604,237.3,237.23,12.83312604]
[1732583413935,12.83312604,237.28,237.21,12.83312604]
[1732583414140,12.83312604,237.28,237.19,12.83312604]
[1732583414434,12.83312604,237.28,237.2,4.2158]
[1732583414830,23.776884,237.27,237.2,4.2158]
[1732583415320,23.776884,237.27,237.21,12.83312604]
[1732583416241,23.776884,237.27,237.15,14.7585]
[1732583416545,23.776884,237.27,237.21,12.83312604]
[1732583416745,12.83312604,237.3,237.21,12.83312604]
[1732583417038,23.776884,237.29,237.21,12.83312604]
[1732583417343,23.776884,237.29,237.22,4.2154]
[1732583419031,23.776884,237.31,237.23,12.83312604]
[1732583420138,23.776884,237.31,237.24,4.2151]
[1732583420346,8.19357226,237.33,237.25,8.19357226]
[1732583420525,8.19357226,237.35,237.27,8.19357226]
[1732583422233,8.19357226,237.35,237.28,4.2144]
[1732583422545,12.79943445,237.36,237.28,17.01383445]
[1732583422726,23.776884,237.35,237.28,4.2144]
[1732583423631,23.776884,237.35,237.24,25.9109]
[1732583423632,23.776884,237.33,237.25,4.2147]
[1732583424228,23.776884,237.33,237.26,12.79943445]
[1732583424548,23.776884,237.35,237.3,12.79943445]
[1732583424723,23.776884,237.37,237.3,12.79943445]
[1732583424923,23.776884,237.37,237.28,12.79943445]
[1732583425450,12.79943445,237.36,237.28,12.79943445]
[1732583425646,23.776884,237.35,237.29,4.2142]
[1732583425939,23.776884,237.35,237.24,15.3731]
[1732583425940,12.79943445,237.32,237.25,4.2148]
[1732583428220,12.79943445,237.28,237.22,4.2153]
[1732583428550,12.79943445,237.26,237.2,4.2157]
[1732583429635,12.79943445,237.24,237.17,6.3372]
[1732583430222,12.79943445,237.24,237.17,10.5535]
[1732583432041,23.776884,237.23,237.17,10.5535]
[1732583434740,12.79943445,237.22,237.17,4.2163]
[1732583435429,23.776884,237.23,237.17,4.2163]
[1732583435726,12.79943445,237.24,237.17,4.2163]
[1732583437729,23.776884,237.23,237.17,4.2163]
[1732583437929,12.79943445,237.22,237.17,4.2163]
[1732583438150,12.79943445,237.24,237.17,4.2163]
[1732583438734,12.79943445,237.26,237.18,12.79943445]
[1732583439148,23.776884,237.25,237.18,12.79943445]
[1732583439552,15.2882,237.3,237.17,4.2163]
[1732583439553,12.79943445,237.28,237.2,12.79943445]
[1732583439850,23.776884,237.27,237.21,4.2156]
[1732583440031,23.776884,237.29,237.21,4.2156]
[1732583441147,12.79943445,237.26,237.21,4.2156]
[1732583441449,23.776884,237.25,237.19,4.2158]
[1732583443054,23.776884,237.25,237.16,8.19835171]
[1732583443953,8.19835171,237.24,237.16,8.19835171]
[1732583445267,23.776884,237.25,237.18,8.19835171]
[1732583446834,8.19835171,237.2,237.08,1.57419724]
[1732583447047,8.19835171,237.2,237.14,20.0]
[1732583447248,8.19835171,237.2,237.14,24.2168]
[1732583447450,8.19835171,237.2,237.14,4.2168]
[1732583448155,8.19835171,237.18,237.11,21.8414]
[1732583448342,8.19835171,237.16,237.11,15.5042]
[1732583448536,8.19835171,237.16,237.06,6.3078]
[1732583448537,8.19835171,237.16,237.07,8.19835171]
[1732583448855,23.776884,237.15,237.08,4.2179]
[1732583449155,8.19835171,237.16,237.08,4.2179]
[1732583449368,8.19835171,237.16,237.09,8.19835171]
[1732583449740,23.776884,237.15,237.08,4.2179]
[1732583451254,134.5,237.22,237.08,4.2179]
[1732583451255,23.776884,237.19,237.13,8.19835171]
[1732583452852,23.776884,237.19,237.14,4.2169]
[1732583455863,23.776884,237.19,237.11,8.19835171]
[1732583456044,23.776884,237.15,237.1,4.2174]
[1732583456242,8.19835171,237.16,237.1,4.2174]
[1732583456456,23.776884,237.17,237.1,4.2174]
[1732583456658,8.19835171,237.16,237.1,4.2174]
[1732583459044,31.97523571,237.18,237.1,4.2174]
[1732583460576,8.19835171,237.16,237.1,4.2174]
[1732583461445,23.776884,237.18,237.1,4.2174]
[1732583461446,31.97523571,237.18,237.1,4.2174]
[1732583462257,31.97523571,237.18,237.11,8.19835171]
[1732583462574,23.776884,237.19,237.13,8.19835171]
[1732583462872,8.19835171,237.2,237.13,8.19835171]
[1732583463452,8.19835171,237.22,237.13,8.19835171]
[1732583464251,8.19835171,237.2,237.13,8.19835171]
[1732583464452,8.19835171,237.2,237.14,4.2169]
[1732583464752,8.19835171,237.18,237.13,4.217]
[1732583464953,8.19835171,237.2,237.13,12.41535171]
[1732583465172,23.776884,237.21,237.15,8.19835171]
[1732583465355,8.19835171,237.26,237.17,8.19835171]
[1732583465567,8.19835171,237.28,237.19,8.19835171]
[1732583466067,8.19835171,237.28,237.17,15.2112]
[1732583466068,8.19835171,237.28,237.21,8.19835171]
[1732583466372,8.19835171,237.26,237.18,4.2162]
[1732583466582,8.19835171,237.24,237.18,4.2162]
[1732583466759,23.776884,237.23,237.18,4.2162]
[1732583466959,23.776884,237.23,237.17,15.2112]
[1732583467257,8.19835171,237.24,237.17,19.4275]
[1732583467466,23.776884,237.23,237.17,19.4275]
[1732583468475,23.776884,237.23,237.17,27.62585171]
[1732583469676,6.666,237.35,237.17,27.62585171]
[1732583469974,8.19835171,237.29,237.2,8.19835171]
[1732583470382,12.80749705,237.29,237.2,12.80749705]
[1732583471060,23.776884,237.28,237.2,12.80749705]
[1732583471872,23.776884,237.28,237.21,4.2156]
[1732583472771,23.776884,237.28,237.17,25.7521]
[1732583472772,23.776884,237.28,237.22,12.80749705]
[1732583472970,23.776884,237.28,237.2,12.80749705]
[1732583473693,23.776884,237.26,237.18,17.02369705]
[1732583474276,12.80749705,237.25,237.18,4.2162]
[1732583474974,23.776884,237.24,237.18,4.2162]
[1732583475810,12.80749705,237.23,237.18,4.2162]
[1732583476106,12.80749705,237.23,237.17,15.2112]
[1732583476107,23.776884,237.22,237.17,19.4274]
[1732583476309,12.80749705,237.25,237.17,19.4274]
[1732583476485,23.776884,237.24,237.17,19.4274]
[1732583476902,12.80749705,237.25,237.17,29.9683]
[1732583477106,12.80749705,237.27,237.18,12.80749705]
[1732583478007,12.80749705,237.27,237.19,4.216]
[1732583478312,23.776884,237.26,237.19,4.216]
[1732583479596,23.776884,237.26,237.17,15.2112]
[1732583479797,12.80749705,237.25,237.18,4.2162]
[1732583482307,23.776884,237.24,237.18,4.2162]
[1732583482483,23.776884,237.22,237.17,15.2112]
[1732583482898,23.776884,237.24,237.18,4.2162]
[1732583483427,23.776884,237.26,237.18,17.02369705]
[1732583483719,23.776884,237.26,237.18,4.2162]
[1732583483903,23.776884,237.26,237.18,17.02369705]
[1732583486320,23.776884,237.24,237.18,4.2162]
[1732583487405,12.80749705,237.27,237.18,17.02369705]
[1732583487606,23.776884,237.26,237.18,17.02369705]
[1732583489213,23.776884,237.26,237.18,4.2162]
[1732583489419,12.80749705,237.25,237.18,4.2162]
[1732583489725,23.776884,237.24,237.18,4.2162]
[1732583493009,26.305884,237.24,237.17,15.2112]
[1732583493397,26.305884,237.24,237.17,19.4275]
[1732583493398,23.776884,237.24,237.17,19.4275]
[1732583494833,23.776884,237.24,237.17,15.2112]
[1732583495032,26.305984,237.24,237.17,15.2112]
[1732583495329,26.305984,237.24,237.17,19.4275]
[1732583497838,23.776884,237.24,237.17,19.4275]
[1732583500537,8.19948454,237.23,237.17,19.4275]
[1732583501935,23.776884,237.22,237.14,4.2169]
[1732583502151,23.776884,237.2,237.12,4.2171]
[1732583502316,8.19948454,237.19,237.12,4.2171]
[1732583503213,8.19948454,237.21,237.13,8.19948454]
[1732583503427,8.19948454,237.23,237.15,8.19948454]
[1732583505425,8.19948454,237.23,237.16,4.2165]
[1732583506043,8.19948454,237.25,237.17,8.19948454]
[1732583506243,147.094,237.31,237.17,8.19948454]
[1732583506244,8.19948454,237.27,237.17,8.19948454]
[1732583506953,8.19948454,237.25,237.17,8.19948454]
[1732583507250,23.776884,237.24,237.18,4.2162]
[1732583509241,23.776884,237.24,237.16,4.2165]
[1732583509936,26.305884,237.24,237.16,4.2165]
[1732583510137,8.19948454,237.23,237.16,4.2165]
[1732583510851,23.776884,237.22,237.16,4.2165]
[1732583511033,23.776884,237.24,237.16,4.2165]
[1732583511755,26.305884,237.24,237.16,4.2165]
[1732583513229,8.19948454,237.23,237.13,8.19948454]
[1732583513433,8.19948454,237.21,237.13,8.19948454]
[1732583513638,23.776884,237.2,237.12,4.2172]
[1732583514551,23.776884,237.2,237.13,8.19948454]
[1732583515632,23.776884,237.2,237.14,4.2169]
[1732583517650,23.776884,237.21,237.15,8.19948454]
[1732583518044,134.5,237.27,237.19,8.19948454]
[1732583518045,23.776884,237.23,237.19,8.19948454]
[1732583518352,8.19948454,237.28,237.21,8.19948454]
[1732583519439,23.776884,237.27,237.21,8.19948454]
[1732583519954,23.776884,237.27,237.19,8.19948454]
[1732583520131,10.72808454,237.28,237.17,12.41568454]
[1732583520132,23.776884,237.25,237.17,12.41568454]
[1732583520336,8.19948454,237.22,237.12,4.2172]
[1732583520535,8.19948454,237.22,237.13,8.19948454]
[1732583520740,23.776884,237.21,237.13,8.19948454]
[1732583520952,23.776884,237.21,237.15,8.19948454]
[1732583521159,23.776884,237.23,237.15,8.19948454]
[1732583521656,23.776884,237.23,237.15,12.41618454]
[1732583522034,8.19948454,237.24,237.17,8.19948454]
[1732583522241,20.0,237.22,237.17,8.19948454]
[1732583522439,8.19948454,237.26,237.19,8.19948454]
[1732583523544,8.19948454,237.26,237.19,12.41528454]
[1732583524149,2.5286,237.28,237.21,8.19948454]
[1732583524150,20.0,237.28,237.21,8.19948454]
[1732583524365,28.19948454,237.28,237.21,8.19948454]
[1732583524871,23.776884,237.27,237.19,12.41528454]
[1732583528054,28.19948454,237.28,237.19,12.41528454]
[1732583528260,20.0,237.28,237.21,31.30998454]
[1732583528775,28.19948454,237.28,237.21,23.1105]
[1732583528958,8.19948454,237.26,237.21,23.1105]
[1732583529269,28.19948454,237.28,237.21,23.1105]
[1732583529659,20.0,237.28,237.22,4.2154]
[1732583529957,6.60373739,237.34,237.23,8.19948454]
[1732583530156,8.19948454,237.33,237.23,8.19948454]
[1732583530566,8.19948454,237.31,237.23,8.19948454]
[1732583530762,8.19948454,237.31,237.22,4.2154]
[1732583531150,8.19948454,237.29,237.21,35.52558454]
[1732583531357,23.776884,237.28,237.21,35.52558454]
[1732583531670,8.19948454,237.29,237.21,35.52558454]
[1732583531851,8.19948454,237.31,237.23,8.19948454]
[1732583532547,8.19948454,237.33,237.25,8.19948454]
[1732583532749,20.0,237.32,237.25,8.19948454]
[1732583533651,20.0,237.32,237.23,8.19948454]
[1732583534070,8.19948454,237.31,237.24,4.2151]
[1732583534248,8.19948454,237.29,237.24,4.2151]
[1732583534644,8.19948454,237.3,237.22,4.2153]
[1732583536257,8.19948454,237.3,237.21,31.30998454]
[1732583536258,8.19948454,237.28,237.21,23.1105]
[1732583536582,23.776884,237.29,237.21,23.1105]
[1732583536583,8.19948454,237.26,237.21,23.1105]
[1732583538386,23.776884,237.25,237.21,23.1105]
[1732583540563,8.19948454,237.26,237.21,23.1105]
[1732583542177,8.19948454,237.26,237.21,27.3261]
[1732583542370,8.19948454,237.26,237.21,23.1105]
[1732583543488,10.72828454,237.26,237.21,23.1105]
[1732583543674,23.776884,237.25,237.21,23.1105]
[1732583543878,8.19948454,237.24,237.21,23.1105]
[1732583545770,10.72848454,237.24,237.21,23.1105]
[1732583546281,8.19948454,237.22,237.14,15.8938]
[1732583546601,8.19948454,237.2,237.14,15.8938]
[1732583547491,23.776884,237.23,237.15,8.19948454]
[1732583547673,8.19948454,237.24,237.17,8.19948454]
[1732583548091,20.0,237.26,237.17,8.19948454]
[1732583548263,20.0,237.24,237.17,8.19948454]
[1732583548892,20.0,237.24,237.15,8.19948454]
[1732583549093,137.0285,237.29,237.17,8.19948454]
[1732583549282,20.0,237.26,237.19,8.19948454]
[1732583549788,20.0,237.26,237.2,4.2158]
[1732583550876,8.19948454,237.27,237.2,4.2158]
[1732583551107,8.19948454,237.29,237.2,4.2158]
[1732583551277,31.97636854,237.29,237.21,8.19948454]
[1732583551593,8.19948454,237.27,237.2,4.2158]
[1732583552091,31.97636854,237.29,237.2,4.2158]
[1732583552388,34.50486854,237.29,237.2,4.2158]
[1732583553194,8.19948454,237.33,237.24,8.19948454]
[1732583553898,8.19948454,237.31,237.23,22.1965]
[1732583554083,8.19948454,237.29,237.23,22.1965]
[1732583554282,23.776884,237.28,237.23,22.1965]
[1732583554482,8.19948454,237.27,237.23,22.1965]
[1732583556197,10.72818454,237.27,237.23,22.1965]
[1732583557596,8.19948454,237.25,237.18,4.216]
[1732583557779,2.5287,237.27,237.17,22.1965]
[1732583557780,8.19948454,237.23,237.17,22.1965]
[1732583557988,8.19948454,237.23,237.17,26.4128]
[1732583558897,23.776884,237.22,237.17,22.1965]
[1732583559090,8.19948454,237.21,237.17,22.1965]
[1732583560703,23.776884,237.22,237.17,22.1965]
[1732583560887,8.19948454,237.21,237.17,22.1965]
[1732583563986,23.776884,237.22,237.17,22.1965]
[1732583564707,26.306184,237.22,237.17,22.1965]
[1732583564910,8.19948454,237.21,237.14,8.19948454]
[1732583565089,8.19948454,237.21,237.13,4.2169]
[1732583565405,23.776884,237.2,237.13,4.2169]
[1732583566795,26.306384,237.2,237.13,4.2169]
[1732583567202,8.19948454,237.19,237.12,8.19948454]
[1732583567401,23.776884,237.18,237.11,21.9103]
[1732583568011,8.19948454,237.17,237.11,26.1277]
[1732583568998,23.776884,237.16,237.11,26.1277]
[1732583570608,23.776884,237.18,237.12,8.19948454]
[1732583572403,26.306584,237.18,237.11,26.1277]
[1732583573037,23.776884,237.18,237.11,26.1277]
[1732583573537,23.776884,237.16,237.11,26.1277]
[1732583573929,23.776884,237.16,237.11,21.9103]
[1732583574118,23.776884,237.12,237.05,21.9103]
[1732583574320,8.19948454,237.1,237.05,21.9103]
[1732583574514,8.19948454,237.1,237.04,4.2186]
[1732583574923,23.776884,237.09,237.0,15.3115]
[1732583575120,8.19948454,237.06,237.0,15.3115]
[1732583575325,8.19948454,237.06,237.0,19.5308]
[1732583576041,8.19948454,237.04,237.0,19.5308]
[1732583576438,8.19948454,237.04,237.0,15.3115]
[1732583576637,8.19948454,237.06,237.0,19.5309]
[1732583576829,23.776884,237.05,237.0,19.5309]
[1732583577224,20.0,237.08,237.0,19.5309]
[1732583577540,8.19948454,237.07,237.0,19.5309]
[1732583578344,23.776884,237.06,237.0,15.3115]
[1732583578537,8.19948454,237.05,237.0,15.3115]
[1732583579245,8.19948454,237.05,237.0,19.5309]
[1732583581340,8.19948454,237.02,236.98,4.2196]
[1732583581649,31.97636854,237.04,236.98,4.2196]
[1732583584452,31.97636854,237.04,236.97,4.2199]
[1732583584637,8.19948454,237.02,236.97,4.2199]
[1732583584831,8.19948454,237.04,236.97,4.2199]
[1732583585422,8.19948454,237.02,236.97,4.2199]
[1732583586646,8.19948454,237.02,236.95,4.2202]
[1732583587227,8.19948454,237.0,236.95,4.2202]
[1732583587645,8.19948454,237.02,236.95,4.2202]
[1732583588355,8.19948454,237.04,236.95,4.2202]
[1732583588835,8.19948454,237.04,236.95,12.41968454]
[1732583589542,26.307584,237.08,236.95,12.41968454]
[1732583589746,8.19948454,237.04,236.95,12.41968454]
[1732583591340,8.19948454,237.02,236.95,12.41968454]
[1732583591535,8.19948454,237.02,236.95,4.2202]
[1732583591743,8.19948454,237.0,236.95,4.2202]
[1732583592741,8.19948454,237.02,236.95,4.2202]
[1732583593659,8.19948454,237.0,236.95,4.2202]
[1732583596259,23.776884,237.01,236.95,4.2202]
[1732583597344,8.19948454,237.02,236.95,4.2202]
[1732583597549,8.19948454,237.04,236.96,8.19948454]
[1732583598056,8.19948454,237.02,236.95,4.2202]
[1732583599215,8.19948454,236.98,236.95,4.2202]
[1732583599373,8.19948454,236.98,236.94,15.3115]
[1732583599574,8.19948454,236.96,236.93,6.5988]
[1732583600059,8.19948454,236.96,236.89,23.89098454]
[1732583600264,8.19948454,236.96,236.9,4.221]
[1732583601875,8.19948454,236.92,236.88,10.2606]
[1732583602170,8.19948454,236.92,236.88,6.0393]
[1732583602668,8.19948454,236.89,236.83,21.7308]
[1732583602845,2.532,236.96,236.7,10.0]
[1732583602846,8.19948454,236.85,236.8,4.2229]
[1732583603061,134.5,236.95,236.78,4.2233]
[1732583603062,8.19948454,236.84,236.78,4.2233]
[1732583603294,8.19948454,236.83,236.78,4.2233]
[1732583603466,31.97636854,236.82,236.77,21.7308]
[1732583603782,8.19948454,236.82,236.77,21.7308]
[1732583604787,8.19948454,236.79,236.74,4.2238]
[1732583604992,8.19948454,236.78,236.74,4.2238]
[1732583605988,8.19948454,236.79,236.74,4.2238]
[1732583606377,8.19948454,236.78,236.72,10.2635]
[1732583606700,8.19948454,236.81,236.74,8.19948454]
[1732583608078,8.19948454,236.81,236.75,4.2238]
[1732583610082,8.19948454,236.79,236.73,4.2242]
[1732583610492,8.19948454,236.79,236.71,15.6915]
[1732583610493,8.19948454,236.77,236.71,19.9159]
[1732583611486,8.19948454,236.75,236.69,4.2248]
[1732583613076,8.19948454,236.73,236.67,10.7706]
[1732583613786,8.19948454,236.69,236.64,0.4899952]
[1732583614088,23.776884,236.74,236.64,0.4899952]
[1732583614089,8.19948454,236.65,236.64,0.4899952]
[1732583614288,31.97636854,236.65,236.64,0.4899952]
[1732583614910,8.19948454,236.69,236.64,0.4899952]
[1732583615197,8.19948454,236.69,236.64,4.7156952]
[1732583616301,8.19948454,236.69,236.64,0.4899952]
[1732583617000,8.19948454,236.67,236.64,0.4899952]
[1732583617178,31.97636854,236.65,236.64,0.4899952]
[1732583622374,64.7743067,236.65,236.64,0.4899952]
[1732583622778,71.32264069,236.65,236.64,0.4899952]
[1732583623193,20.0,236.62,236.51,6.5455]
[1732583623398,8.19948454,236.55,236.51,6.5455]
[1732583623989,8.19948454,236.55,236.48,20.6724]
[1732583624190,8.19948454,236.53,236.48,20.6724]
[1732583624390,6.54833399,236.61,236.48,16.4439]
[1732583624391,8.19948454,236.51,236.48,16.4439]
[1732583624780,8.19948454,236.49,236.45,6.6021]
[1732583624980,8.19948454,236.46,236.42,20.6492]
[1732583625484,8.19948454,236.46,236.42,16.4195]
[1732583625702,8.19948454,236.46,236.4,7.0920952]
[1732583625892,8.19948454,236.43,236.4,0.4899952]
[1732583626289,12.89990894,236.43,236.4,0.4899952]
[1732583626492,12.89990894,236.42,236.4,0.4899952]
[1732583627603,20.0,236.49,236.4,4.7199952]
[1732583627604,12.89990894,236.45,236.4,4.7199952]
[1732583627982,12.89990894,236.45,236.4,0.4899952]
[1732583628493,12.89990894,236.43,236.4,0.4899952]
[1732583629004,12.89990894,236.41,236.4,0.4899952]
[1732583629301,36.67679294,236.41,236.4,0.4899952]
[1732583630992,12.89990894,236.41,236.4,0.4899952]
[1732583631199,2.1143,236.48,236.4,0.4899952]
[1732583631396,12.89990894,236.46,236.4,4.7199952]
[1732583631611,12.89990894,236.46,236.4,0.4899952]
[1732583631779,12.89990894,236.44,236.4,0.4899952]
[1732583631985,12.89990894,236.46,236.4,4.7199952]
[1732583632210,12.89990894,236.46,236.4,0.4899952]
[1732583632378,12.89990894,236.44,236.4,0.4899952]
[1732583632701,2.1143,236.49,236.4,0.4899952]
[1732583632702,23.776884,236.41,236.4,0.4899952]
[1732583634408,12.89990894,236.42,236.4,0.4899952]
[1732583634706,12.89990894,236.44,236.4,0.4899952]
[1732583635291,12.89990894,236.46,236.4,4.7199952]
[1732583638409,12.89990894,236.44,236.4,0.4899952]
[1732583639302,12.89990894,236.46,236.4,0.4899952]
[1732583639509,12.89990894,236.46,236.4,4.7199952]
[1732583640697,12.89990894,236.48,236.4,4.7199952]
[1732583641417,12.89990894,236.48,236.41,16.4195]
[1732583641608,12.89990894,236.5,236.42,12.89990894]
[1732583641804,12.89990894,236.52,236.44,12.89990894]
[1732583642007,12.89990894,236.5,236.42,12.89990894]
[1732583642623,12.89990894,236.54,236.46,12.89990894]
[1732583642789,12.89990894,236.56,236.48,12.89990894]
[1732583642989,12.89990894,236.58,236.5,12.89990894]
[1732583643190,12.89990894,236.56,236.48,12.89990894]
[1732583643706,12.89990894,236.54,236.49,4.2285]
[1732583643901,12.89990894,236.54,236.47,4.2287]
[1732583644101,12.89990894,236.56,236.47,4.2287]
[1732583644602,12.89990894,236.56,236.48,12.89990894]
[1732583645413,12.89990894,236.56,236.48,17.12840894]
[1732583645610,12.89990894,236.58,236.48,17.12840894]
[1732583646922,12.89990894,236.56,236.48,17.12840894]
[1732583647324,134.5,236.63,236.48,17.12840894]
[1732583647325,12.89990894,236.6,236.5,12.89990894]
[1732583647499,12.89990894,236.64,236.54,12.89990894]
[1732583647819,12.89990894,236.66,236.56,12.89990894]
[1732583648210,12.89990894,236.66,236.58,12.89990894]
[1732583648810,12.89990894,236.66,236.59,4.2267]
[1732583650235,12.89990894,236.68,236.6,19.50200894]
[1732583650522,15.339,236.74,236.66,12.89990894]
[1732583650523,12.89990894,236.74,236.66,12.89990894]
[1732583650726,12.89990894,236.76,236.66,12.89990894]
[1732583650897,12.89990894,236.74,236.66,12.89990894]
[1732583651508,12.89990894,236.76,236.68,12.89990894]
[1732583652004,12.89990894,236.78,236.68,12.89990894]
[1732583652902,12.89990894,236.76,236.68,12.89990894]
[1732583653422,12.89990894,236.8,236.7,12.89990894]
[1732583653609,12.89990894,236.82,236.74,12.89990894]
[1732583653812,12.89990894,236.84,236.76,12.89990894]
[1732583654021,12.89990894,236.86,236.78,12.89990894]
[1732583655107,12.89990894,236.84,236.77,4.2233]
[1732583655936,12.89990894,236.86,236.78,12.89990894]
[1732583657317,12.89990894,236.86,236.78,17.12310894]
[1732583657503,15.01080894,236.86,236.78,12.89990894]
[1732583657709,12.89990894,236.86,236.78,12.89990894]
[1732583658936,12.89990894,236.84,236.76,12.89990894]
[1732583659246,12.89990894,236.82,236.74,12.89990894]
[1732583659614,12.89990894,236.84,236.76,12.89990894]
[1732583660715,12.89990894,236.82,236.74,12.89990894]
[1732583660925,12.89990894,236.8,236.72,17.12410894]
[1732583661324,12.89990894,236.86,236.76,12.89990894]
[1732583661627,12.89990894,236.86,236.78,12.89990894]
[1732583662207,12.89990894,236.84,236.76,12.89990894]
[1732583663635,12.89990894,236.84,236.76,17.12340894]
[1732583663819,12.89990894,236.82,236.74,12.89990894]
[1732583664142,12.89990894,236.82,236.74,17.12370894]
[1732583665545,12.89990894,236.8,236.72,12.89990894]
[1732583666729,12.89990894,236.8,236.72,17.12420894]
[1732583667227,12.89990894,236.8,236.72,4.2243]
[1732583668019,15.01140894,236.8,236.72,4.2243]
[1732583668331,12.89990894,236.8,236.72,17.12420894]
[1732583668532,12.89990894,236.82,236.72,17.12420894]
[1732583668735,139.7771,236.87,236.76,12.89990894]
[1732583668736,12.89990894,236.84,236.76,12.89990894]
[1732583668940,12.89990894,236.82,236.74,12.89990894]
[1732583669624,12.89990894,236.8,236.73,4.2241]
[1732583670421,12.89990894,236.8,236.72,12.89990894]
[1732583670629,12.89990894,236.8,236.72,17.12420894]
[1732583671351,12.89990894,236.82,236.74,12.89990894]
[1732583671538,12.89990894,236.84,236.76,12.89990894]
[1732583672055,134.5,236.87,236.8,12.89990894]
[1732583672056,136.6108,236.87,236.8,12.89990894]
[1732583672348,2.1108,236.87,236.8,12.89990894]
[1732583672554,12.89990894,236.88,236.8,17.12280894]
[1732583672730,15.01060894,236.88,236.8,12.89990894]
[1732583673043,12.89990894,236.86,236.78,17.12310894]
[1732583673938,12.89990894,236.86,236.78,12.89990894]
[1732583674150,12.89990894,236.84,236.76,12.89990894]
[1732583674646,2.1109,236.86,236.74,12.89990894]
[1732583674647,12.89990894,236.82,236.74,12.89990894]
[1732583675636,12.89990894,236.84,236.76,12.89990894]
[1732583675954,12.89990894,236.86,236.76,12.89990894]
[1732583676136,12.89990894,236.86,236.78,12.89990894]
[1732583677132,12.89990894,236.84,236.78,4.2233]
[1732583677450,12.89990894,236.84,236.76,17.12350894]
[1732583678946,15.01100894,236.84,236.76,17.12350894]
[1732583679664,12.89990894,236.82,236.74,4.2239]
[1732583681560,12.89990894,236.82,236.74,12.89990894]
[1732583682350,12.89990894,236.78,236.72,4.2244]
[1732583683849,12.89990894,236.8,236.72,4.2244]
[1732583684049,12.89990894,236.8,236.73,12.89990894]
[1732583685064,12.89990894,236.8,236.73,17.12400894]
[1732583685976,12.89990894,236.82,236.73,4.2241]
[1732583686151,12.89990894,236.84,236.77,12.89990894]
[1732583687167,12.89990894,236.84,236.78,4.2233]
[1732583687374,12.89990894,236.86,236.78,4.2233]
[1732583688973,12.89990894,236.84,236.78,4.2233]
[1732583689173,12.89990894,236.84,236.75,12.89990894]
[1732583690759,15.01100894,236.84,236.76,4.2236]
[1732583694982,15.01080894,236.86,236.77,12.89990894]
[1732583695179,15.01080894,236.86,236.79,12.89990894]
[1732583696176,15.01080894,236.86,236.78,4.2233]
[1732583696365,12.89990894,236.84,236.78,4.2233]
[1732583697377,15.01110894,236.84,236.75,17.12370894]
[1732583698062,12.89990894,236.82,236.75,17.12370894]
[1732583698384,15.01110894,236.84,236.75,17.12370894]
[1732583700385,15.01110894,236.84,236.75,12.89990894]
[1732583700887,15.01110894,236.84,236.72,4.2242]
[1732583700888,12.89990894,236.8,236.72,4.2242]
[1732583701062,12.89990894,236.82,236.73,12.89990894]
[1732583701467,12.89990894,236.8,236.73,12.89990894]
[1732583701865,32.89990894,236.82,236.73,12.89990894]
[1732583702069,32.89990894,236.82,236.75,12.89990894]
[1732583702275,20.0,236.82,236.75,12.89990894]
[1732583702679,2.1112,236.83,236.75,12.89990894]
[1732583702887,12.89990894,236.82,236.75,12.89990894]